bitfinex/quotes_SOLUSD_20250821
["timestamp","ask_amount","ask_price","bid_price","bid_amount"]
[1755787562455,7.25045911,184.66,184.61,10.66]
[1755787562765,26.0,184.66,184.63,10.0]
[1755787562933,26.0,184.66,184.62,0.66]
[1755787562934,26.0,184.66,184.62,10.66]
[1755787563141,7.25045911,184.69,184.63,10.66]
[1755787563142,7.25045911,184.67,184.63,10.66]
[1755787563442,7.25045911,184.66,184.63,10.0]
[1755787563654,0.06,184.72,184.64,10.0]
[1755787563859,0.06,184.72,184.66,10.0]
[1755787563860,7.25045911,184.69,184.66,10.0]
[1755787564170,7.25045911,184.68,184.66,10.0]
[1755787564870,7.25045911,184.68,184.66,10.66]
[1755787565072,0.06,184.72,184.69,10.0]
[1755787565377,0.06,184.72,184.7,17.25045911]
[1755787565676,0.06,184.72,184.71,10.0]
[1755787565844,0.06,184.72,184.71,0.66]
[1755787566050,0.06,184.72,184.71,10.66]
[1755787566864,0.06,184.72,184.71,17.91045911]
[1755787567356,0.06,184.74,184.73,17.25045911]
[1755787567556,0.06,184.78,184.77,10.0]
[1755787567862,0.06,184.78,184.77,17.25045911]
[1755787568046,0.06,184.78,184.77,17.91045911]
[1755787568370,0.06,184.78,184.77,10.0]
[1755787568750,0.06,184.78,184.77,10.66]
[1755787568948,0.06,184.78,184.77,17.91045911]
[1755787569782,54.77250921,184.89,184.77,17.91045911]
[1755787570078,7.25045911,184.86,184.84,10.0]
[1755787570252,7.25045911,184.86,184.83,10.0]
[1755787570567,7.25045911,184.86,184.81,7.25045911]
[1755787570568,33.25045911,184.86,184.82,17.25045911]
[1755787570750,33.25045911,184.86,184.83,10.0]
[1755787571070,26.0,184.86,184.84,0.66]
[1755787571268,54.77250921,184.89,184.85,10.66]
[1755787571469,7.25045911,184.88,184.85,0.66]
[1755787571771,7.25045911,184.86,184.82,10.0]
[1755787572156,7.25045911,184.86,184.81,10.0]
[1755787572361,55.45250921,184.89,184.82,17.91045911]
[1755787572561,7.25045911,184.86,184.82,17.91045911]
[1755787572770,7.25045911,184.85,184.81,10.0]
[1755787572965,7.25045911,184.84,184.8,10.0]
[1755787573174,54.77250921,184.89,184.78,10.0]
[1755787573175,0.68,184.83,184.78,10.0]
[1755787573483,7.25045911,184.84,184.81,10.0]
[1755787573650,0.68,184.86,184.79,17.91045911]
[1755787573852,54.77250921,184.89,184.81,10.0]
[1755787574053,54.77250921,184.89,184.83,7.25045911]
[1755787574277,7.35045911,184.87,184.83,7.25045911]
[1755787574653,7.35045911,184.87,184.83,7.91045911]
[1755787575178,0.68,184.86,184.82,10.0]
[1755787575482,0.1,184.87,184.84,10.0]
[1755787575685,7.35045911,184.87,184.84,10.0]
[1755787575986,7.35045911,184.87,184.85,10.0]
[1755787575987,0.1,184.87,184.85,10.0]
[1755787576180,0.1,184.87,184.86,10.0]
[1755787576354,0.1,184.87,184.86,17.91045911]
[1755787577153,0.1,184.87,184.86,17.97045911]
[1755787579162,0.1,184.87,184.86,10.72]
[1755787579473,0.1,184.87,184.86,17.97045911]
[1755787580462,0.1,184.87,184.86,10.72]
[1755787580770,0.1,184.87,184.86,17.97045911]
[1755787581363,0.1,184.87,184.85,10.0]
[1755787581682,0.1,184.87,184.86,17.97045911]
[1755787582259,0.1,184.87,184.86,111.36605312]
[1755787582577,0.1,184.87,184.86,97.77045911]
[1755787582764,0.1,184.87,184.86,142.13045911]
[1755787583689,0.1,184.87,184.86,54.36]
[1755787584589,0.1,184.87,184.86,62.33045911]
[1755787585796,0.06,184.91,184.86,75.92605312]
[1755787585962,0.06,184.91,184.9,17.25045911]
[1755787586284,0.06,184.91,184.9,54.34]
[1755787586867,0.06,184.91,184.9,10.0]
[1755787587064,7.98045911,184.91,184.89,44.34]
[1755787587261,7.25045911,184.9,184.89,44.34]
[1755787587467,0.73,184.91,184.89,54.34]
[1755787587686,7.25045911,184.9,184.89,54.34]
[1755787587892,0.73,184.91,184.89,54.34]
[1755787588088,26.0,184.87,184.83,10.0]
[1755787588284,7.25045911,184.84,184.82,10.0]
[1755787588472,7.25045911,184.86,184.84,10.0]
[1755787588673,0.06,184.91,184.85,0.72]
[1755787588882,7.25045911,184.9,184.88,10.0]
[1755787589382,7.92045911,184.89,184.88,10.0]
[1755787589773,7.25045911,184.89,184.88,10.0]
[1755787589979,7.31045911,184.91,184.88,10.0]
[1755787590282,7.25045911,184.89,184.87,10.0]
[1755787590613,7.25045911,184.88,184.87,10.0]
[1755787590788,7.25045911,184.89,184.86,10.0]
[1755787591089,26.06,184.91,184.88,10.0]
[1755787591291,33.31045911,184.91,184.88,10.0]
[1755787592074,7.25045911,184.89,184.88,10.0]
[1755787592274,26.06,184.91,184.88,10.0]
[1755787592495,33.31045911,184.91,184.88,10.0]
[1755787592710,0.06,184.91,184.88,17.25045911]
[1755787593008,0.06,184.91,184.9,17.25045911]
[1755787593173,0.06,184.91,184.9,61.59045911]
[1755787593379,0.06,184.91,184.9,62.31045911]
[1755787593675,0.06,184.91,184.9,17.97045911]
[1755787593878,0.06,184.91,184.9,62.31045911]
[1755787594597,0.06,184.91,184.9,88.56484105]
[1755787594798,0.06,184.91,184.9,81.31438194]
[1755787595300,0.06,184.91,184.9,75.90605312]
[1755787595673,0.06,184.91,184.9,62.31045911]
[1755787595866,0.06,184.91,184.9,88.56484105]
[1755787596096,0.06,184.91,184.9,75.90605312]
[1755787596294,0.06,184.91,184.9,17.97045911]
[1755787596495,0.06,184.91,184.9,75.90605312]
[1755787597080,0.06,184.91,184.9,81.31438194]
[1755787597285,0.06,184.91,184.9,75.90605312]
[1755787597492,0.06,184.91,184.9,31.56605312]
[1755787597798,0.06,184.91,184.9,75.88605312]
[1755787597992,0.06,184.91,184.9,61.57045911]
[1755787598294,0.06,184.91,184.9,17.25045911]
[1755787598478,0.06,184.91,184.9,10.0]
[1755787598976,7.98045911,184.91,184.9,44.32]
[1755787599173,0.06,184.91,184.9,54.32]
[1755787599983,0.06,184.91,184.9,62.29045911]
[1755787600278,0.06,184.91,184.9,88.54484105]
[1755787601714,0.06,184.93,184.9,88.54484105]
[1755787601877,0.06,184.93,184.92,30.84605312]
[1755787602508,0.06,184.97,184.96,23.59559401]
[1755787602696,0.73,185.07,185.04,10.0]
[1755787602876,0.73,185.07,185.05,44.32]
[1755787603077,7.92045911,185.06,185.05,44.32]
[1755787603695,7.92045911,185.06,185.0,54.32]
[1755787603902,7.25045911,185.01,185.0,54.32]
[1755787604102,0.06,185.07,185.0,44.32]
[1755787604286,7.25045911,185.01,185.0,44.32]
[1755787604603,7.92045911,185.01,184.97,44.32]
[1755787604817,7.25045911,184.99,184.97,44.32]
[1755787605021,7.25045911,184.99,184.98,10.0]
[1755787605496,26.0,185.02,184.98,10.0]
[1755787605697,0.67,185.02,184.99,10.0]
[1755787606004,0.67,185.05,185.01,17.25045911]
[1755787606210,0.06,185.04,185.02,51.55045911]
[1755787606421,0.73,185.04,185.03,10.0]
[1755787606790,0.06,185.04,185.03,10.0]
[1755787606995,0.06,185.04,185.03,17.25045911]
[1755787607404,0.06,185.04,185.03,10.0]
[1755787607806,0.06,185.04,185.02,10.0]
[1755787608030,0.06,185.04,185.03,54.3]
[1755787608209,0.06,185.04,185.03,61.55045911]
[1755787608901,0.06,185.04,185.03,62.27045911]
[1755787610107,0.06,185.04,185.03,61.55045911]
[1755787610300,0.06,185.04,185.03,62.27045911]
[1755787610898,0.06,185.04,185.03,61.55045911]
[1755787611434,0.06,185.04,185.03,10.0]
[1755787611722,0.06,185.04,185.03,61.55045911]
[1755787611893,0.06,185.04,185.03,54.28]
[1755787612093,0.06,185.04,185.03,61.53045911]
[1755787612350,0.06,185.04,185.03,62.25045911]
[1755787612505,0.06,185.04,185.03,75.84605312]
[1755787613920,0.06,185.04,185.03,81.25058211]
[1755787614127,0.06,185.04,185.03,75.84605312]
[1755787614924,0.06,185.04,185.03,81.25058211]
[1755787615237,0.06,185.06,185.05,39.59559401]
[1755787615406,0.06,185.06,185.05,101.12605312]
[1755787615607,0.06,185.06,185.05,101.84605312]
[1755787617535,0.06,185.06,185.05,99.99953888]
[1755787617838,0.06,185.06,185.05,107.24999799]
[1755787618144,0.06,185.09,185.08,49.59559401]
[1755787618438,0.06,185.09,185.08,56.84605312]
[1755787618634,0.06,185.09,185.08,101.84605312]
[1755787618843,0.06,185.11,185.09,13.59559401]
[1755787619026,0.06,185.11,185.1,10.0]
[1755787619221,0.06,185.11,185.1,62.25045911]
[1755787619523,0.06,185.18,185.11,23.59559401]
[1755787619732,0.06,185.18,185.15,10.0]
[1755787620036,0.06,185.18,185.15,61.53045911]
[1755787620231,0.06,185.18,185.15,75.84605312]
[1755787621116,0.06,185.18,185.15,75.82605312]
[1755787621624,0.06,185.18,185.17,49.59559401]
[1755787621831,0.06,185.2,185.18,23.59559401]
[1755787622034,0.71,185.29,185.26,10.0]
[1755787622035,0.71,185.27,185.26,10.0]
[1755787622234,0.71,185.27,185.26,44.26]
[1755787622753,0.71,185.27,185.26,61.51045911]
[1755787622951,0.71,185.27,185.26,54.26]
[1755787623317,0.71,185.27,185.26,61.51045911]
[1755787623845,0.71,185.27,185.26,54.26]
[1755787624454,0.71,185.3,185.27,10.0]
[1755787624617,0.71,185.29,185.28,44.26]
[1755787624811,0.71,185.29,185.2,26.0]
[1755787624812,7.96045911,185.29,185.25,10.0]
[1755787625033,0.71,185.28,185.25,10.0]
[1755787625240,26.0,185.32,185.25,10.0]
[1755787625439,0.71,185.27,185.25,10.0]
[1755787625626,0.71,185.27,185.22,10.0]
[1755787625627,7.25045911,185.26,185.22,10.0]
[1755787625821,7.25045911,185.24,185.23,54.24]
[1755787626026,7.25045911,185.24,185.22,44.24]
[1755787626027,7.96045911,185.24,185.22,44.24]
[1755787626339,26.0,185.29,185.21,10.0]
[1755787626340,7.96045911,185.23,185.21,10.0]
[1755787626511,7.96045911,185.23,185.22,54.24]
[1755787626718,0.71,185.28,185.24,10.0]
[1755787626936,0.71,185.28,185.27,17.25045911]
[1755787627139,0.71,185.31,185.3,10.0]
[1755787627348,0.71,185.34,185.3,61.49045911]
[1755787627565,0.71,185.34,185.33,10.0]
[1755787627736,0.71,185.34,185.33,54.24]
[1755787627937,0.71,185.36,185.34,10.0]
[1755787628159,7.25045911,185.39,185.35,51.49045911]
[1755787628364,2.8151177,185.42,185.26,26.0]
[1755787628365,7.25045911,185.36,185.31,10.0]
[1755787628655,7.25045911,185.32,185.29,44.24]
[1755787628863,7.25045911,185.3,185.29,44.24]
[1755787629045,0.71,185.3,185.29,44.24]
[1755787629227,0.71,185.34,185.29,44.24]
[1755787629427,0.71,185.33,185.3,10.0]
[1755787629733,7.96045911,185.33,185.3,10.0]
[1755787629928,7.25045911,185.33,185.3,10.0]
[1755787630135,7.25045911,185.34,185.3,10.0]
[1755787630337,7.96045911,185.33,185.31,10.0]
[1755787630758,7.96045911,185.33,185.3,10.0]
[1755787630759,0.71,185.32,185.3,10.0]
[1755787631093,0.71,185.31,185.27,10.0]
[1755787631349,0.71,185.31,185.29,10.0]
[1755787631556,7.96045911,185.31,185.29,10.0]
[1755787631736,0.71,185.31,185.29,10.0]
[1755787631942,7.25045911,185.31,185.28,44.22]
[1755787632145,7.96045911,185.3,185.27,10.0]
[1755787632348,0.71,185.3,185.28,54.22]
[1755787632530,7.96045911,185.3,185.29,10.0]
[1755787632726,0.71,185.33,185.3,10.0]
[1755787632927,0.71,185.36,185.31,10.0]
[1755787633131,2.8151177,185.42,185.32,10.0]
[1755787633132,7.96045911,185.35,185.32,10.0]
[1755787633344,7.25045911,185.33,185.29,10.0]
[1755787633552,7.25045911,185.3,185.29,54.22]
[1755787633753,7.25045911,185.31,185.29,54.22]
[1755787634058,7.96045911,185.3,185.29,44.22]
[1755787634369,33.25045911,185.35,185.29,44.22]
[1755787634370,0.71,185.33,185.29,44.22]
[1755787634537,7.25045911,185.32,185.3,10.0]
[1755787634867,7.96045911,185.33,185.3,10.0]
[1755787635060,26.0,185.35,185.3,10.0]
[1755787635061,7.96045911,185.32,185.3,10.0]
[1755787635263,7.25045911,185.31,185.3,10.0]
[1755787635445,7.25045911,185.31,185.29,10.0]
[1755787635772,7.25045911,185.31,185.28,54.22]
[1755787635956,7.25045911,185.29,185.28,10.0]
[1755787636143,26.0,185.33,185.27,54.22]
[1755787636344,26.0,185.33,185.26,54.22]
[1755787636653,7.25045911,185.29,185.28,10.0]
[1755787636842,26.0,185.26,185.22,9.77]
[1755787637041,7.25045911,185.23,185.21,9.77]
[1755787637757,7.25045911,185.22,185.18,9.77]
[1755787637949,7.25045911,185.19,185.16,44.22]
[1755787638149,7.25045911,185.17,185.16,44.22]
[1755787638366,7.25045911,185.17,185.13,0.03]
[1755787638587,7.25045911,185.16,185.15,9.77]
[1755787638769,7.25045911,185.16,185.13,0.03]
[1755787638975,13.59559401,185.2,185.13,0.03]
[1755787639161,7.25045911,185.14,185.13,0.03]
[1755787639987,46.84605312,185.14,185.13,0.03]
[1755787640472,28.09651223,185.14,185.13,0.03]
[1755787640848,26.0,185.12,185.11,0.03]
[1755787641153,46.84605312,185.12,185.11,0.03]
[1755787641774,7.25045911,185.12,185.11,0.03]
[1755787643054,20.84605312,185.12,185.11,0.03]
[1755787643258,26.0,185.06,185.01,9.77]
[1755787643480,26.0,185.06,185.0,9.77]
[1755787643684,26.0,185.06,185.01,9.77]
[1755787643850,26.0,185.06,184.99,0.67]
[1755787644271,26.0,185.06,185.01,9.77]
[1755787644651,26.0,185.06,184.99,9.77]
[1755787644856,26.0,185.06,184.98,44.22]
[1755787644857,7.25045911,185.0,184.98,44.22]
[1755787645059,7.25045911,184.99,184.98,44.22]
[1755787645260,7.25045911,184.99,184.96,9.77]
[1755787645466,7.25045911,184.97,184.94,9.77]
[1755787645668,26.0,185.07,184.97,9.77]
[1755787645876,7.25045911,184.98,184.97,9.77]
[1755787646172,26.0,185.03,184.97,10.44]
[1755787646173,7.25045911,185.0,184.97,10.44]
[1755787646377,11.03160974,185.0,184.97,10.44]
[1755787646545,11.03160974,184.99,184.97,10.44]
[1755787646751,11.03160974,184.99,184.97,9.77]
[1755787646947,11.03160974,184.99,184.97,10.44]
[1755787647267,11.03160974,185.05,185.03,9.77]
[1755787648376,11.03160974,185.04,185.02,9.77]
[1755787648675,11.03160974,185.04,185.02,10.44]
[1755787648872,11.03160974,185.03,185.02,9.77]
[1755787649183,26.0,185.07,185.03,9.77]
[1755787649184,11.03160974,185.04,185.03,9.77]
[1755787649371,11.03160974,185.04,185.01,9.77]
[1755787649552,11.03160974,185.02,184.99,9.77]
[1755787649761,11.03160974,185.0,184.99,9.77]
[1755787649956,11.03160974,185.01,184.99,9.77]
[1755787650274,11.03160974,185.03,185.02,9.77]
[1755787650648,11.03160974,185.03,185.0,9.77]
[1755787650870,11.03160974,185.02,185.01,9.77]
[1755787651176,11.03160974,185.03,185.02,9.77]
[1755787651651,26.0,185.06,185.01,9.77]
[1755787651857,26.0,185.06,184.98,80.47]
[1755787651858,11.03160974,185.02,185.0,9.77]
[1755787652064,11.03160974,185.02,185.0,89.57]
[1755787652466,2.81992983,185.11,185.06,9.77]
[1755787652676,11.03160974,185.09,185.08,9.77]
[1755787652875,16.41459145,185.16,185.09,9.77]
[1755787653177,16.41459145,185.16,185.07,11.03160974]
[1755787653178,26.0,185.13,185.07,9.77]
[1755787653379,11.03160974,185.08,185.07,9.77]
[1755787653604,26.0,185.13,185.07,10.44]
[1755787653783,16.41459145,185.16,185.09,9.77]
[1755787654083,2.81899744,185.16,185.1,9.77]
[1755787654262,4.44308152,185.23,185.12,9.77]
[1755787654263,44.26,185.21,185.12,9.77]
[1755787654467,2.81835366,185.2,185.12,9.77]
[1755787654677,26.0,185.18,185.12,9.77]
[1755787655087,13.59559401,185.19,185.12,9.77]
[1755787655262,13.59559401,185.19,185.1,9.77]
[1755787655463,11.03160974,185.11,185.1,9.77]
[1755787655770,26.0,185.16,185.1,9.77]
[1755787655953,11.03160974,185.11,185.1,9.77]
[1755787656156,11.03160974,185.11,185.08,54.03]
[1755787656381,11.03160974,185.09,185.08,44.26]
[1755787656763,11.03160974,185.09,185.07,9.77]
[1755787656962,11.03160974,185.08,185.07,9.77]
[1755787657164,11.03160974,185.08,185.05,9.77]
[1755787657484,26.0,185.09,185.06,9.77]
[1755787657890,26.0,185.1,185.06,9.77]
[1755787658190,26.0,185.09,185.05,9.77]
[1755787658367,26.0,185.09,185.04,54.01]
[1755787658684,11.03160974,185.05,185.03,9.77]
[1755787658858,11.03160974,185.04,185.02,9.77]
[1755787659058,11.03160974,185.03,184.99,0.67]
[1755787659259,11.03160974,185.12,184.99,0.67]
[1755787659260,11.03160974,185.01,184.99,10.44]
[1755787659484,11.03160974,185.03,185.0,10.44]
[1755787659692,13.99559401,185.13,185.03,9.77]
[1755787659997,11.03160974,185.1,185.07,9.77]
[1755787660484,11.03160974,185.1,185.08,9.77]
[1755787660684,0.4,185.13,185.08,9.77]
[1755787660685,11.03160974,185.09,185.08,9.77]
[1755787661476,11.03160974,185.09,185.07,9.77]
[1755787661679,26.0,185.11,185.07,9.77]
[1755787661883,37.03160974,185.11,185.08,9.77]
[1755787662067,11.03160974,185.1,185.07,9.77]
[1755787662284,11.03160974,185.09,185.07,9.77]
[1755787662484,11.03160974,185.09,185.08,9.77]
[1755787662673,11.03160974,185.09,185.07,9.77]
[1755787663186,11.03160974,185.08,185.06,9.77]
[1755787663397,11.03160974,185.08,185.07,9.77]
[1755787663705,11.03160974,185.08,185.06,9.77]
[1755787663890,11.03160974,185.07,185.05,9.77]
[1755787664190,11.03160974,185.06,185.05,9.77]
[1755787664579,11.03160974,185.07,185.05,9.77]
[1755787664796,26.46,185.11,185.06,9.77]
[1755787664797,11.03160974,185.08,185.06,9.77]
[1755787665091,11.03160974,185.08,185.07,9.77]
[1755787665290,11.03160974,185.08,185.05,10.44]
[1755787665599,11.03160974,185.07,185.06,9.77]
[1755787665761,11.03160974,185.07,185.05,10.44]
[1755787665961,11.03160974,185.06,185.05,9.77]
[1755787666187,11.03160974,185.06,185.04,9.77]
[1755787666496,39.99559401,185.1,185.05,9.77]
[1755787666794,13.99559401,185.09,185.02,9.77]
[1755787666992,13.99559401,185.09,185.01,134.48]
[1755787667295,13.59559401,185.09,185.05,9.77]
[1755787667594,7.21365826,185.07,185.05,10.43]
[1755787668186,7.21365826,185.08,185.06,0.66]
[1755787668603,33.21365826,185.1,185.07,10.43]
[1755787668790,26.0,185.1,185.07,10.43]
[1755787669266,0.06,185.11,185.08,0.66]
[1755787669466,0.06,185.11,185.1,9.77]
[1755787669877,0.06,185.11,185.09,9.77]
[1755787669878,7.27365826,185.11,185.09,9.77]
[1755787670066,7.27365826,185.11,185.1,9.77]
[1755787670671,26.0,185.08,185.05,9.77]
[1755787670879,7.67365826,185.11,185.01,0.66]
[1755787670880,26.0,185.1,185.06,9.77]
[1755787671112,26.0,185.1,184.99,0.03]
[1755787671113,26.0,185.06,185.0,9.77]
[1755787671290,13.59559401,185.05,185.01,9.77]
[1755787671997,7.21365826,185.02,184.99,0.03]
[1755787672175,7.21365826,185.0,184.99,0.03]
[1755787672595,7.21365826,185.0,184.99,10.46]
[1755787673283,7.21365826,185.0,184.99,9.8]
[1755787673976,7.21365826,185.0,184.99,10.46]
[1755787674176,7.21365826,185.01,184.99,10.46]
[1755787674397,7.21365826,185.01,185.0,0.66]
[1755787674707,26.0,185.05,185.03,9.77]
[1755787675105,0.4,185.04,184.99,0.03]
[1755787675617,0.4,185.04,184.99,9.8]
[1755787675901,7.21365826,185.0,184.99,9.8]
[1755787676681,7.21365826,185.0,184.99,0.03]
[1755787677080,21.20925227,185.0,184.99,0.03]
[1755787677604,26.0,185.03,184.99,0.03]
[1755787677908,33.21365826,185.01,184.99,0.03]
[1755787678205,7.21365826,185.0,184.99,0.03]
[1755787678809,26.0,185.01,184.99,0.03]
[1755787678998,33.21365826,185.01,184.99,0.03]
[1755787679204,33.21365826,185.01,185.0,9.77]
[1755787679205,7.21365826,185.01,185.0,9.77]
[1755787679405,13.59559401,185.08,185.02,9.77]
[1755787679618,7.21365826,185.04,185.02,9.77]
[1755787679784,7.21365826,185.03,185.0,9.77]
[1755787679986,7.21365826,185.01,184.99,9.8]
[1755787680196,7.21365826,185.0,184.99,9.8]
[1755787680516,7.21365826,185.03,185.01,9.77]
[1755787680692,7.21365826,185.03,185.02,9.77]
[1755787681186,7.21365826,185.03,185.01,9.77]
[1755787681384,7.21365826,185.02,185.01,9.77]
[1755787681585,7.21365826,185.02,184.99,0.03]
[1755787681785,7.21365826,185.0,184.99,0.03]
[1755787682509,11.23963936,185.0,184.99,0.03]
[1755787683208,14.85456492,185.0,184.99,0.03]
[1755787683506,11.24216038,185.0,184.99,0.03]
[1755787683711,14.85708594,185.0,184.99,0.03]
[1755787683915,5.40372778,185.06,185.01,9.77]
[1755787683916,4.44308152,185.06,185.01,9.77]
[1755787684083,14.87274025,185.05,185.02,10.43]
[1755787684407,3.62814886,185.04,185.03,10.43]
[1755787684591,3.62814886,185.06,185.05,9.77]
[1755787684793,11.24669977,185.06,185.05,9.77]
[1755787685614,4.03304151,185.06,185.05,9.77]
[1755787685817,11.24669977,185.06,185.05,9.77]
[1755787686126,4.03304151,185.06,185.05,10.43]
[1755787686411,4.03304151,185.06,185.05,17.64365826]
[1755787686611,4.03304151,185.06,185.05,10.43]
[1755787686813,3.62814886,185.09,185.08,9.77]
[1755787687023,10.84180712,185.1,185.08,10.43]
[1755787687320,11.24728875,185.09,185.08,9.77]
[1755787687522,26.0,185.06,185.03,9.77]
[1755787687692,7.21365826,185.04,185.01,9.77]
[1755787687889,7.21365826,185.04,185.0,9.77]
[1755787687890,7.21365826,185.02,185.0,9.77]
[1755787688090,26.0,185.02,185.0,9.77]
[1755787688291,4.84308152,185.08,185.01,9.77]
[1755787688598,7.66193191,185.07,185.03,9.77]
[1755787688818,7.66193191,185.06,185.04,9.77]
[1755787689116,4.03249289,185.05,185.04,9.77]
[1755787689522,11.248176,185.05,185.04,9.77]
[1755787689815,33.66395676,185.05,185.04,9.77]
[1755787690023,40.87761502,185.05,185.04,9.77]
[1755787690422,36.84309728,185.05,185.04,9.77]
[1755787691006,3.62943902,185.05,185.04,10.43]
[1755787691193,7.27365826,185.13,185.1,9.77]
[1755787691520,4.03406852,185.12,185.1,9.77]
[1755787691723,7.27365826,185.13,185.1,9.77]
[1755787691916,7.27365826,185.13,185.07,9.77]
[1755787691917,7.95365826,185.11,185.07,9.77]
[1755787692097,4.03362438,185.1,185.07,9.77]
[1755787692298,7.21365826,185.08,185.07,9.77]
[1755787692823,7.21365826,185.09,185.07,9.77]
[1755787693026,0.06,185.11,185.07,9.77]
[1755787693318,4.77447913,185.11,185.07,9.77]
[1755787693688,4.77447913,185.11,185.06,9.77]
[1755787693889,7.21365826,185.07,185.04,9.77]
[1755787694095,7.21365826,185.05,185.04,9.77]
[1755787694708,7.21365826,185.05,185.03,9.77]
[1755787694902,7.21365826,185.04,185.03,9.77]
[1755787695828,7.21365826,185.04,185.02,9.77]
[1755787695999,7.21365826,185.03,185.02,9.77]
[1755787697819,7.21365826,185.03,184.99,9.8]
[1755787698021,7.21365826,185.0,184.99,0.03]
[1755787699610,26.0,185.01,184.99,10.45]
[1755787699811,7.21365826,185.02,184.99,0.03]
[1755787700012,7.21365826,185.0,184.99,0.03]
[1755787701526,47.51925227,185.0,184.99,0.03]
[1755787702127,25.55802606,185.0,184.99,0.03]
[1755787703215,13.59559401,184.98,184.97,0.03]
[1755787703408,28.48337288,184.98,184.97,0.03]
[1755787703607,29.19337288,184.98,184.97,0.03]
[1755787704539,33.6364544,184.98,184.97,0.03]
[1755787704707,46.80925227,184.96,184.95,0.03]
[1755787704912,46.80925227,184.96,184.93,0.03]
[1755787704913,13.59559401,184.94,184.93,0.03]
[1755787705116,72.70337288,184.94,184.93,0.03]
[1755787705328,73.41337288,184.94,184.93,0.03]
[1755787705529,73.39332904,184.94,184.93,0.03]
[1755787706039,73.39332904,184.94,184.87,0.2]
[1755787706040,86.01414637,184.94,184.87,0.2]
[1755787706249,7.21365826,184.88,184.87,0.2]
[1755787706417,29.63534682,184.9,184.87,0.2]
[1755787706615,26.0,184.9,184.87,0.2]
[1755787706817,33.21365826,184.88,184.87,0.2]
[1755787707235,26.0,184.88,184.87,0.2]
[1755787707426,33.21365826,184.88,184.87,0.2]
[1755787707627,46.80925227,184.88,184.87,0.2]
[1755787708937,50.43052876,184.88,184.87,0.2]
[1755787709445,46.80925227,184.88,184.87,0.2]
[1755787710033,50.42847296,184.88,184.87,0.2]
[1755787710344,51.13628053,184.88,184.87,0.2]
[1755787710724,50.42628053,184.88,184.87,0.2]
[1755787710918,51.13628053,184.88,184.87,0.2]
[1755787711556,94.66432926,184.88,184.87,0.2]
[1755787712064,95.37432926,184.88,184.87,0.2]
[1755787713547,13.59559401,184.87,184.85,0.03]
[1755787713730,20.80925227,184.86,184.85,0.03]
[1755787713925,29.13698328,184.86,184.85,0.03]
[1755787714135,29.13823081,184.86,184.85,0.03]
[1755787714868,13.59559401,184.84,184.83,0.03]
[1755787715165,13.59559401,184.84,184.78,0.03]
[1755787715166,39.59559401,184.8,184.78,0.03]
[1755787715460,20.80925227,184.79,184.78,0.03]
[1755787720532,21.51925227,184.79,184.78,0.03]
[1755787720732,20.80925227,184.79,184.78,0.03]
[1755787722526,21.51925227,184.79,184.78,0.03]